fUST/lending_fUST_20251115
["ID","MTS","AMOUNT","RATE_DAILY","PERIOD"]
[394041697,1763215752023,152.34,0.000109,2]
[394041698,1763215752298,152.34,0.000111,2]
[394041699,1763215752586,152.34,0.000112,2]
[394041700,1763215752995,152.34,0.000114,2]
[394041701,1763215753087,-443.812283,0.00020187,2]
[394041702,1763215753106,-150.0,0.0002032,2]
[394041703,1763215753124,-160.81857196,0.00020719,2]
[394041704,1763215753142,-470.0,0.00022,2]
[394041705,1763215753160,-470.0,0.00022192,7]
[394041706,1763215753179,-177.0,0.0002232,2]
[394041707,1763215753197,-337.38791853,0.00022325,2]
[394041708,1763215753271,152.34,0.000116,2]
[394041709,1763215753559,152.34,0.000118,2]
[394041710,1763215753836,152.34,0.00012,2]
[394041711,1763215756616,353.01172191,0.0002022,3]
[394041712,1763215802793,150.77,5e-05,2]
[394041713,1763215803128,150.77,5.2e-05,2]
[394041714,1763215803434,150.77,5.4e-05,2]
[394041715,1763215803793,150.77,5.6e-05,2]
[394041716,1763215804089,150.77,5.8e-05,2]
[394041717,1763215804397,150.77,6e-05,2]
[394041718,1763215804763,150.77,6.2e-05,2]
[394041719,1763215805065,150.77,6.4e-05,2]
[394041720,1763215805359,150.77,6.6e-05,2]
[394041721,1763215805832,150.77,6.8e-05,2]
[394041722,1763215806080,150.77,6.9e-05,2]
[394041723,1763215806370,150.77,7.1e-05,2]
[394041724,1763215806655,150.77,7.3e-05,2]
[394041725,1763215806934,150.77,7.5e-05,2]
[394041726,1763215807241,150.77,7.7e-05,2]
[394041727,1763215807570,150.77,7.9e-05,2]
[394041728,1763215807942,150.77,8.1e-05,2]
[394041729,1763215808220,150.77,8.3e-05,2]
[394041730,1763215808584,150.77,8.5e-05,2]
[394041731,1763215808955,150.77,8.7e-05,2]
[394041732,1763215809285,150.77,8.9e-05,2]
[394041733,1763215809603,150.77,9.1e-05,2]
[394041734,1763215809912,150.77,9.3e-05,2]
[394041735,1763215810246,150.77,9.5e-05,2]
[394041736,1763215810614,150.77,9.7e-05,2]
[394041737,1763215811020,150.77,9.9e-05,2]
[394041738,1763215811324,150.77,0.000101,2]
[394041739,1763215811634,150.77,0.000103,2]
[394041740,1763215811963,150.77,0.000104,2]
[394041741,1763215812255,150.77,0.000106,2]
[394041742,1763215812561,150.77,0.000108,2]
[394041743,1763215812847,150.77,0.00011,2]
[394041744,1763215813262,150.77,0.000112,2]
[394041745,1763215813602,150.77,0.000114,2]
[394041746,1763215813888,150.77,0.000116,2]
[394041747,1763215814220,150.77,0.000118,2]
[394041866,1763215838512,-68.26771,0.0002022,3]
[394041867,1763215838522,-353.0,0.00022,2]
[394041868,1763215838531,-353.0,0.00022192,7]
[394041869,1763215838542,-187.5,0.00022714,2]
[394041870,1763215838554,-353.0,0.00023014,7]
[394041871,1763215838563,-1027.5117301,0.0002326,2]
[394041872,1763215838573,-331.24906584,0.00023827,2]
[394041873,1763215838583,-353.0,0.00024164,7]
[394041874,1763215838592,-204.0,0.0002432,2]
[394041875,1763215838602,-272.84458896,0.00024921,2]
[394041876,1763215838611,-428.96676064,0.0002499,2]
[394041877,1763215838764,-500.0,0.00025073,2]
[394041878,1763215838774,-500.0,0.00025073,2]
[394041879,1763215838784,-500.0,0.00025073,2]
[394041880,1763215838792,-503.94670184,0.00025073,2]
[394041881,1763215838801,-525.53599044,0.00025073,2]
[394041882,1763215838810,-300.0,0.00025088,2]
[394041883,1763215838820,-1200.0,0.00025088,2]
[394041884,1763215838829,-600.37116869,0.00025088,2]
[394041885,1763215838839,-500.0,0.00025088,2]
[394041886,1763215838849,-500.0,0.00025088,2]
[394041887,1763215838858,-327.71492566,0.00025088,2]
[394041888,1763215838867,-500.0,0.00025088,2]
[394041889,1763215838877,-500.0,0.00025088,2]
[394041890,1763215838886,-500.0,0.00025088,2]
[394041891,1763215838896,-500.0,0.00025088,2]
[394041892,1763215838905,-500.0,0.00025088,2]
[394041893,1763215838915,-500.0,0.00025088,2]
[394041894,1763215838924,-500.0,0.00025088,2]
[394041895,1763215838939,-500.0,0.00025088,2]
[394041896,1763215838950,-500.0,0.00025088,2]
[394041897,1763215838960,-500.0,0.00025088,2]
[394041898,1763215838970,-378.96765797,0.00025088,2]
[394041899,1763215838980,-500.0,0.00025088,2]
[394041900,1763215838990,-500.0,0.00025088,2]
[394041901,1763215838999,-500.0,0.00025088,2]
[394041902,1763215839009,-500.0,0.00025088,2]
[394041903,1763215839018,-500.0,0.00025088,2]
[394041904,1763215839027,-650.62366797,0.00025088,2]
[394041905,1763215839036,-500.0,0.00025088,2]
[394041906,1763215839046,-80.77838768,0.00025088,2]
[394041911,1763215840699,-167.43643369,0.00025088,2]
[394041912,1763215840709,-500.0,0.00025088,2]
[394041913,1763215840719,-500.0,0.00025088,2]
[394041914,1763215840728,-500.0,0.00025088,2]
[394041915,1763215840737,-1200.0,0.00025089,2]
[394041916,1763215840747,-300.0,0.00025089,2]
[394041917,1763215840757,-300.0,0.00025089,2]
[394041918,1763215840767,-300.0,0.00025089,2]
[394041919,1763215840776,-1188.65284222,0.00025089,2]
[394041920,1763215840787,-34673.54852534,0.00025089,2]
[394041927,1763215846019,-14137.79863244,0.00025089,2]
[394041928,1763215846029,-330.9828944,0.0002509,2]
[394041929,1763215846038,-780.01306687,0.0002509,2]
[394041930,1763215846047,-533.76694547,0.0002509,2]
[394041931,1763215846057,-331.80675208,0.0002509,2]
[394041932,1763215846066,-300.0,0.00025591,20]
[394041933,1763215846075,-300.0,0.00025591,20]
[394041934,1763215846084,-300.0,0.00025591,20]
[394041935,1763215846093,-300.0,0.00025591,20]
[394041936,1763215846103,-300.0,0.00025591,20]
[394041937,1763215846111,-353.0,0.00025775,7]
[394041938,1763215846121,-1245.41942701,0.00026065,2]
[394041939,1763215846130,-187.5,0.00026111,56]
[394041940,1763215846139,-5192.35898671,0.00026165,2]
[394041941,1763215846147,-512.82140284,0.00026173,2]
[394041942,1763215846156,-500.0,0.00026173,2]
[394041943,1763215846165,-397.57805594,0.00026173,2]
[394041944,1763215846174,-500.0,0.00026173,2]
[394041945,1763215846183,-500.0,0.00026173,2]
[394041946,1763215846192,-506.25523108,0.00026173,2]
[394041948,1763215846201,-500.0,0.00026173,2]
[394041949,1763215846211,-585.09824827,0.00026173,2]
[394041950,1763215846220,-500.0,0.00026173,2]
[394041951,1763215846230,-500.0,0.00026173,2]
[394041952,1763215846239,-500.0,0.00026173,2]
[394041953,1763215846248,-500.0,0.00026173,2]
[394041954,1763215846257,-522.104074,0.00026173,2]
[394041955,1763215846267,-500.0,0.00026173,2]
[394041956,1763215846275,-500.0,0.00026173,2]
[394041957,1763215846285,-500.0,0.00026173,2]
[394041958,1763215846294,-500.0,0.00026173,2]
[394041959,1763215846307,-500.0,0.00026173,2]
[394041960,1763215846316,-160.0,0.00026635,2]
[394041961,1763215846326,-443.812283,0.00026676,2]
[394041962,1763215846337,-1000.0,0.00026721,2]
[394041963,1763215846347,-502.95985188,0.00026721,2]
[394041964,1763215846357,-1000.0,0.00026721,2]
[394041965,1763215846367,-481.69996397,0.00026721,2]
[394041966,1763215846376,-1000.0,0.00026721,2]
[394041967,1763215846387,-500.05943707,0.00026721,2]
[394041968,1763215846396,-535.23220887,0.00026721,2]
[394041969,1763215846406,-1000.0,0.00026721,2]
[394041970,1763215846417,-184.32764879,0.00026765,2]
[394041971,1763215846427,-160.0,0.00027,2]
[394041972,1763215846437,-278.02,0.00027095,10]
[394041973,1763215846447,-231.68,0.00027095,10]
[394041974,1763215846457,-300.0,0.00027105,30]
[394041975,1763215846467,-300.0,0.00027105,30]
[394041976,1763215846477,-300.0,0.00027105,30]
[394041977,1763215846487,-300.0,0.00027105,30]
[394041978,1763215846497,-300.0,0.00027105,30]
[394041979,1763215846507,-300.0,0.00027105,30]
[394041980,1763215846516,-300.0,0.00027105,30]
[394041981,1763215846526,-300.0,0.00027105,30]
[394041982,1763215846536,-300.0,0.00027176,2]
[394041983,1763215846545,-420.0,0.00027177,2]
[394041984,1763215846556,-500.0,0.00027267,2]
[394041985,1763215846567,-500.0,0.00027267,2]
[394041986,1763215846577,-189.97776474,0.00027267,2]
[394041987,1763215846587,-500.0,0.00027267,2]
[394041988,1763215846597,-500.0,0.00027267,2]
[394041989,1763215846607,-356.63056815,0.00027267,2]
[394041990,1763215846616,-1000.0,0.00027268,2]
[394041991,1763215846626,-1500.0,0.00027268,2]
[394041992,1763215846637,-1500.0,0.00027268,2]
[394041993,1763215846647,-1680.0,0.00027299,2]
[394041994,1763215846656,-353.0,0.00027386,7]
[394041995,1763215846666,-260.0,0.00027548,2]
[394041996,1763215846675,-353.0,0.00027616,14]
[394041997,1763215846685,-2000.0,0.00027816,5]
[394041998,1763215846694,-2000.0,0.00027816,5]
[394041999,1763215846703,-333.62,0.00027927,10]
[394042000,1763215846713,-1245.41942697,0.00027937,2]
[394042001,1763215846723,-360.0,0.00028096,2]
[394042002,1763215846733,-271.55253996,0.00028314,2]
[394042003,1763215846743,-182.311608,0.00028314,2]
[394042004,1763215846752,-426.93356727,0.00028364,5]
[394042005,1763215846762,-1500.0,0.00028364,5]
[394042006,1763215846772,-297.57,0.00028384,9]
[394042007,1763215846782,-271.55,0.00028384,9]
[394042008,1763215846792,-271.55253996,0.00028484,9]
[394042009,1763215846802,-460.0,0.00028644,2]
[394042010,1763215846812,-271.55253996,0.00028654,17]
[394042011,1763215846822,-182.311608,0.00028654,17]
[394042012,1763215846832,-271.55253996,0.00028824,25]
[394042013,1763215846843,-250.77097878,0.00028947,2]
[394042014,1763215846853,-194.83,0.00028985,10]
[394042015,1763215846862,-271.55253996,0.00028995,32]
[394042016,1763215846872,-182.311608,0.00028995,32]
[394042017,1763215846882,-353.0,0.00028997,14]
[394042018,1763215846891,-271.55253996,0.00029165,40]
[394042019,1763215846901,-560.0,0.00029192,2]
[394042020,1763215846911,-189.79199601,0.00029207,4]
[394042021,1763215846920,-271.55253996,0.00029335,48]
[394042022,1763215846930,-182.311608,0.00029335,48]
[394042023,1763215846940,-587.0,0.00029439,2]
[394042024,1763215846950,-271.55253996,0.00029506,56]
[394042025,1763215846960,-187.5,0.00029507,110]
[394042026,1763215846969,-150.74,0.000296,2]
[394042027,1763215846980,-201.93286099,0.00029603,2]
[394042028,1763215846990,-1199.63,0.00029622,2]
[394042029,1763215846999,-1199.63,0.00029622,2]
[394042030,1763215847009,-1199.63,0.00029622,2]
[394042031,1763215847018,-500.0,0.00029624,20]
[394042032,1763215847028,-1073.9237343,0.00029626,2]
[394042033,1763215847037,-3583.4435705,0.00029626,2]
[394042034,1763215847047,-5709.84584109,0.00029663,2]
[394042035,1763215847056,-500.0,0.00029673,5]
[394042036,1763215847065,-500.0,0.00029673,5]
[394042037,1763215847074,-493.97907115,0.00029673,2]
[394042038,1763215847084,-500.0,0.00029673,5]
[394042039,1763215847095,-500.0,0.00029673,5]
[394042040,1763215847105,-520.19729629,0.00029673,5]
[394042041,1763215847114,-500.0,0.00029673,5]
[394042042,1763215847124,-379.84382448,0.00029673,5]
[394042043,1763215847133,-512.58690366,0.00029673,5]
[394042044,1763215847144,-501.88441996,0.00029673,5]
[394042045,1763215847153,-271.55253996,0.00029676,63]
[394042046,1763215847163,-182.311608,0.00029676,63]
[394042047,1763215847172,-1000.0,0.00029705,2]
[394042048,1763215847182,-258.55319527,0.0002974,2]
[394042049,1763215847192,-1245.41942697,0.00029808,2]
[394042050,1763215847202,-271.55253996,0.00029846,71]
[394042051,1763215847212,-250.52229121,0.00029943,2]
[394042052,1763215847221,-252.10490092,0.00029972,2]
[394042053,1763215847231,-271.55253996,0.00030017,79]
[394042054,1763215847241,-182.311608,0.00030017,79]
[394042055,1763215847254,-209.40437684,0.00030151,2]
[394042056,1763215847264,-271.55253996,0.00030187,86]
[394042057,1763215847274,-1000.0,0.00030221,5]
[394042058,1763215847283,-1000.0,0.00030221,5]
[394042059,1763215847293,-1000.0,0.00030221,5]
[394042060,1763215847303,-234.62343932,0.00030221,5]
[394042061,1763215847312,-271.55253996,0.00030357,94]
[394042062,1763215847322,-182.311608,0.00030357,94]
[394042063,1763215847331,-271.55253996,0.00030528,102]
[394042064,1763215847342,-242.87878429,0.00030675,4]
[394042065,1763215847352,-271.55253996,0.00030698,110]
[394042066,1763215847362,-182.311608,0.00030698,110]
[394042067,1763215847372,-217.15233878,0.00030699,2]
[394042068,1763215847382,-780.01306687,0.00030719,2]
[394042069,1763215847392,-533.76694547,0.00030719,2]
[394042070,1763215847403,-1000.0,0.00030768,5]
[394042071,1763215847414,-1011.49505023,0.00030768,5]
[394042072,1763215847424,-1500.0,0.00030768,5]
[394042073,1763215847435,-428.96676063,0.00030853,2]
[394042074,1763215847445,-1199.63,0.00031072,2]
[394042075,1763215847456,-500.0,0.00031073,5]
[394042076,1763215847467,-295.18481163,0.00031151,44]
[394042077,1763215847478,-225.18697532,0.00031247,2]
[394042078,1763215847488,-168.0,0.00031299,2]
[394042079,1763215847499,-1002.91602362,0.00031316,5]
[394042080,1763215847510,-168.0,0.00031406,7]
[394042081,1763215847520,-168.0,0.00031564,2]
[394042082,1763215847531,-168.0,0.00031587,2]
[394042083,1763215847541,-168.0,0.00031635,2]
[394042084,1763215847552,-1245.41942697,0.0003168,2]
[394042085,1763215847566,-168.0,0.00031713,2]
[394042086,1763215847577,-344.769031,0.00031795,2]
[394042087,1763215847588,-823.0,0.0003189,2]
[394042088,1763215847598,-168.0,0.00032034,2]
[394042089,1763215847610,-168.0,0.00032168,2]
[394042090,1763215847619,-154.314,0.00032187,31]
[394042091,1763215847630,-168.0,0.00032423,2]
[394042092,1763215847641,-737.31059518,0.00032561,2]
[394042093,1763215847651,-168.0,0.00032593,2]
[394042094,1763215847661,-168.0,0.00032823,7]
[394042095,1763215847671,-443.812283,0.00033165,2]
[394042096,1763215847680,-150.0,0.00033203,2]
[394042097,1763215847690,-168.0,0.00033279,7]
[394042098,1763215847700,-3583.4435705,0.00033396,2]
[394042099,1763215847710,-1073.9237343,0.00033477,2]
[394042100,1763215847720,-1245.41942697,0.00033552,2]
[394042101,1763215847730,-168.0,0.00033828,2]
[394042102,1763215847742,-198.67121533,0.00033925,2]
[394042103,1763215847753,-168.0,0.00033968,2]
[394042104,1763215847763,-168.0,0.00034087,7]
[394042105,1763215847772,-168.0,0.00034124,7]
[394042106,1763215847783,-168.0,0.00034127,2]
[394042107,1763215847793,-168.0,0.00034377,2]
[394042108,1763215847804,-434.0,0.00034544,2]
[394042109,1763215847814,-1579.0,0.00034574,120]
[394042110,1763215847824,-1579.0,0.0003484,7]
[394042111,1763215847836,-153.0,0.00035,120]
[394042112,1763215847846,-257.12,0.00035,7]
[394042113,1763215847856,-720.192842,0.00035057,2]
[394042114,1763215847866,-1245.41942697,0.00035424,2]
[394042115,1763215847878,-150.0,0.00035671,30]
[394042116,1763215847888,-331.24906584,0.00035717,2]
[394042117,1763215847900,-1296.34711561,0.00036156,2]
[394042118,1763215847909,-269.16,0.00036196,2]
[394042119,1763215847920,-330.9828944,0.00036348,2]
[394042120,1763215847930,-780.01306687,0.00036348,2]
[394042121,1763215847941,-533.76694547,0.00036348,2]
[394042122,1763215847952,-331.80675208,0.00036348,2]
[394042123,1763215847963,-196.97159378,0.00036425,2]
[394042124,1763215847973,-153.77,0.00036515,60]
[394042125,1763215847983,-2222.57993943,0.00036531,2]
[394042126,1763215847994,-2693.54125916,0.00036567,2]
[394042127,1763215848005,-153.77,0.00036615,60]
[394042128,1763215848015,-160.0,0.0003663,90]
[394042129,1763215848025,-168.0,0.00036638,2]
[394042130,1763215848035,-5709.84584109,0.00036651,3]
[394042131,1763215848045,-153.0,0.000367,120]
[394042132,1763215848055,-2693.54125916,0.00036714,2]
[394042133,1763215848066,-153.77,0.00036715,60]
[394042134,1763215848076,-428.96676063,0.00036715,2]
[394042135,1763215848087,-2222.57993944,0.00036794,2]
[394042136,1763215848098,-153.77,0.00036815,60]
[394042137,1763215848108,-1579.0,0.00036837,2]
[394042138,1763215848118,-153.77,0.00036915,60]
[394042139,1763215848128,-1199.63,0.00036971,2]
[394042140,1763215848138,-500.0,0.00036973,5]
[394042141,1763215848148,-509.10364879,0.00036973,5]
[394042142,1763215848158,-427.87040158,0.00036973,5]
[394042143,1763215848168,-400.92981535,0.00036973,5]
[394042144,1763215848179,-500.0,0.00036973,5]
[394042145,1763215848189,-500.0,0.00036973,5]
[394042146,1763215848200,-500.0,0.00036973,5]
[394042147,1763215848210,-1199.63,0.00036989,2]
[394042148,1763215848221,-500.0,0.00036999,2]
[394042149,1763215848231,-918.84363486,0.00036999,2]
[394042150,1763215848241,-9366.0,0.00037,2]
[394042151,1763215848251,-3515651.39795898,0.00037,2]
[394042152,1763215848262,-1579.0,0.00037008,2]
[394042153,1763215848273,-153.77,0.00037015,60]
[394042154,1763215848283,-153.77,0.00037115,60]
[394042155,1763215848293,-3583.4435705,0.00037165,2]
[394042156,1763215848402,-180.19513896,0.00037191,2]
[394042157,1763215848412,-153.77,0.00037215,60]
[394042158,1763215848422,-357.60818759,0.00037225,2]
[394042159,1763215848432,-166.783053,0.00037248,2]
[394042160,1763215848442,-575.35,0.00037263,3]
[394042161,1763215848451,-863.06,0.00037263,3]
[394042162,1763215848461,-287.68,0.00037264,3]
[394042163,1763215848471,-28549.2292054,0.00037271,3]
[394042164,1763215848481,-151.0,0.00037271,31]
[394042165,1763215848492,-151.0,0.00037271,31]
[394042166,1763215848502,-196.840827,0.00037271,31]
[394042167,1763215848513,-151.0,0.00037271,31]
[394042168,1763215848523,-274.194834,0.00037271,31]
[394042169,1763215848533,-1199.63,0.00037272,2]
[394042170,1763215848543,-500.0,0.00037273,5]
[394042171,1763215848554,-500.0,0.00037273,5]
[394042172,1763215848565,-1199.63,0.0003728,2]
[394042173,1763215848575,-1199.63,0.0003728,2]
[394042174,1763215848585,-1199.63,0.0003728,2]
[394042175,1763215848596,-1199.63,0.0003728,2]
[394042176,1763215848607,-1199.63,0.0003728,2]
[394042177,1763215848617,-1199.63,0.0003728,2]
[394042178,1763215848628,-1199.63,0.0003728,2]
[394042179,1763215848640,-1199.63,0.0003728,2]
[394042180,1763215848650,-1199.63,0.0003728,2]
[394042181,1763215848661,-1199.63,0.0003728,2]
[394042182,1763215848671,-151.0,0.00037281,31]
[394042183,1763215848682,-197.885021,0.00037281,31]
[394042184,1763215848693,-280.626443,0.00037281,28]
[394042185,1763215848704,-162.865606,0.00037281,31]
[394042186,1763215848715,-167.554277,0.00037281,31]
[394042187,1763215848725,-163.701964,0.00037281,31]
[394042188,1763215848736,-151.0,0.00037281,31]
[394042189,1763215848746,-177.956083,0.00037281,31]
[394042190,1763215848756,-151.0,0.00037281,31]
[394042191,1763215848766,-157.328911,0.00037281,31]
[394042192,1763215848776,-1199.63,0.0003729,2]
[394042193,1763215848788,-1199.63,0.0003729,2]
[394042194,1763215848798,-1199.63,0.0003729,2]
[394042195,1763215848809,-1199.63,0.0003729,2]
[394042196,1763215848820,-1199.63,0.0003729,2]
[394042197,1763215848831,-1199.63,0.0003729,2]
[394042198,1763215848842,-1199.65687396,0.0003729,2]
[394042199,1763215848853,-151.0,0.00037291,31]
[394042200,1763215848863,-158.520643,0.00037291,31]
[394042201,1763215848873,-154.582748,0.00037291,31]
[394042202,1763215848883,-151.0,0.00037291,31]
[394042203,1763215848894,-151.0,0.00037291,31]
[394042204,1763215848904,-153.598019,0.00037291,31]
[394042205,1763215848915,-151.0,0.00037291,2]
[394042206,1763215848925,-151.0,0.00037291,31]
[394042207,1763215848936,-246.652851,0.00037291,31]
[394042208,1763215848947,-1245.41942697,0.00037295,2]
[394042209,1763215848958,-313.0,0.000373,30]
[394042210,1763215848968,-151.0,0.000373,19]
[394042211,1763215848979,-153.77,0.00037315,60]
[394042212,1763215848990,-1073.9237343,0.00037328,2]
[394042213,1763215849001,-153.77,0.00037415,60]
[394042214,1763215849011,-153.77,0.00037515,60]
[394042215,1763215849020,-1000.0,0.00037521,5]
[394042216,1763215849030,-1000.0,0.00037521,5]
[394042217,1763215849040,-1000.0,0.00037521,5]
[394042218,1763215849049,-1000.0,0.00037521,5]
[394042219,1763215849060,-153.77,0.00037615,60]
[394042220,1763215849069,-500.0,0.0003764,14]
[394042221,1763215849080,-153.77,0.00037715,60]
[394042222,1763215849090,-300.0,0.00037739,30]
[394042223,1763215849099,-300.0,0.00037739,30]
[394042224,1763215849109,-300.0,0.00037739,30]
[394042225,1763215849119,-300.0,0.00037739,30]
[394042226,1763215849129,-151.0,0.000378,20]
[394042227,1763215849140,-153.77,0.00037815,60]
[394042228,1763215849149,-500.0,0.00037821,5]
[394042229,1763215849158,-500.0,0.00037821,5]
[394042230,1763215849177,-151.0,0.000379,17]
[394042231,1763215849188,-1000.0,0.000379,8]
[394042232,1763215849200,-153.77,0.00037915,60]
[394042233,1763215849210,-5709.84584109,0.0003799,3]
[394042234,1763215849220,-1000.0,0.00038,120]
[394042235,1763215849230,-20605.289302,0.00038,2]
[394042236,1763215849240,-515.25391257,0.00038,14]
[394042237,1763215849251,-153.77,0.00038015,60]
[394042238,1763215849260,-329.55886305,0.00038068,5]
[394042239,1763215849270,-841.11842229,0.00038068,5]
[394042240,1763215849280,-1063.01408117,0.00038068,5]
[394042241,1763215849291,-510.03567499,0.00038068,5]
[394042242,1763215849301,-151.0,0.00038088,14]
[394042243,1763215849311,-166.0,0.00038088,14]
[394042244,1763215849321,-151.0,0.00038088,14]
[394042245,1763215849331,-166.0,0.00038088,14]
[394042246,1763215849341,-151.0,0.00038088,14]
[394042247,1763215849351,-166.0,0.00038088,14]
[394042248,1763215849361,-166.0,0.00038088,14]
[394042249,1763215849370,-151.0,0.00038088,14]
[394042250,1763215849380,-158.65053712,0.00038088,14]
[394042251,1763215849390,-332.0,0.00038088,14]
[394042252,1763215849400,-152.0,0.00038088,14]
[394042253,1763215849411,-332.0,0.00038088,14]
[394042254,1763215849421,-152.0,0.00038088,14]
[394042255,1763215849432,-332.0,0.00038088,14]
[394042256,1763215849443,-152.0,0.00038088,14]
[394042257,1763215849453,-332.0,0.00038088,14]
[394042258,1763215849463,-152.0,0.00038088,14]
[394042259,1763215849473,-332.0,0.00038088,14]
[394042260,1763215849484,-152.0,0.00038088,14]
[394042261,1763215849495,-332.0,0.00038088,14]
[394042262,1763215849505,-152.0,0.00038088,14]
[394042263,1763215849516,-347.22772241,0.00038088,14]
[394042264,1763215849527,-152.0,0.00038088,14]
[394042265,1763215849538,-152.0,0.00038088,14]
[394042266,1763215849551,-152.0,0.00038088,14]
[394042267,1763215849564,-152.0,0.00038088,14]
[394042268,1763215849575,-152.0,0.00038088,14]
[394042269,1763215849586,-152.0,0.00038088,14]
[394042270,1763215849596,-152.0,0.00038088,14]
[394042271,1763215849606,-152.0,0.00038088,14]
[394042272,1763215849616,-152.0,0.00038088,14]
[394042273,1763215849627,-152.0,0.00038088,14]
[394042274,1763215849638,-152.0,0.00038088,14]
[394042275,1763215849650,-152.0,0.00038088,14]
[394042276,1763215849662,-152.0,0.00038088,14]
[394042277,1763215849674,-152.0,0.00038088,14]
[394042278,1763215849685,-152.0,0.00038088,14]
[394042279,1763215849695,-152.0,0.00038088,14]
[394042280,1763215849705,-152.0,0.00038088,14]
[394042281,1763215849715,-152.0,0.00038088,14]
[394042282,1763215849726,-152.0,0.00038088,14]
[394042283,1763215849736,-152.0,0.00038088,14]
[394042284,1763215849746,-152.0,0.00038088,14]
[394042285,1763215849762,-152.0,0.00038088,14]
[394042286,1763215849775,-152.0,0.00038088,14]
[394042287,1763215849790,-279.93182234,0.00038088,14]
[394042288,1763215849804,-500.0,0.00038095,2]
[394042289,1763215849818,-151.0,0.000381,19]
[394042290,1763215849829,-153.77,0.00038115,60]
[394042291,1763215849843,-153.77,0.00038215,60]
[394042292,1763215849855,-153.77,0.00038315,60]
[394042293,1763215849866,-1658.94883915,0.00038356,2]
[394042294,1763215849877,-1000.0,0.00038356,120]
[394042295,1763215849889,-1000.0,0.00038356,120]
[394042296,1763215849904,-1000.0,0.00038356,120]
[394042297,1763215849917,-1000.0,0.00038356,120]
[394042298,1763215849930,-1000.0,0.00038356,120]
[394042299,1763215849941,-755.7036032,0.00038356,120]
[394042300,1763215849952,-151.0,0.00038356,31]
[394042301,1763215849965,-151.0,0.000384,18]
[394042302,1763215849976,-153.77,0.00038415,120]
[394042303,1763215849987,-153.0,0.000385,120]
[394042304,1763215849999,-153.77,0.00038515,120]
[394042305,1763215850010,-988.0,0.00038555,2]
[394042306,1763215850021,-2149.0,0.00038555,2]
[394042307,1763215850033,-629.0,0.00038555,2]
[394042308,1763215850044,-790.3023657,0.00038609,30]
[394042309,1763215850056,-153.77,0.00038615,120]
[394042310,1763215850067,-1150.7,0.00038633,3]
[394042311,1763215850080,-575.36,0.00038634,3]
[394042312,1763215850091,-758.40881606,0.00038679,4]
[394042313,1763215850103,-9993.91375503,0.000387,2]
[394042314,1763215850114,-151.0,0.000387,11]
[394042315,1763215850125,-153.77,0.00038715,120]
[394042316,1763215850136,-68518.1500931,0.0003879,3]
[394042317,1763215850147,-200.529145,0.0003879,120]
[394042318,1763215850161,-151.0,0.0003879,120]
[394042319,1763215850172,-1000280.96968905,0.000388,2]
[394042320,1763215850183,-4683.85,0.000388,14]
[394042321,1763215850195,-787.9,0.000388,14]
[394042322,1763215850206,-168.994138,0.000388,120]
[394042323,1763215850218,-153.424421,0.000388,60]
[394042324,1763215850230,-151.000003,0.000388,2]
[394042325,1763215850240,-151.0,0.000388,120]